[Event "*** Titled Tuesday Blitz"]
[Site "Chess.com"]
[Date "2020.04.14"]
[Round "8"]
[White "JozefKneht"]
[Black "MrTattaglia"]
[Result "0-1"]
[WhiteElo "2602"]
[BlackElo "2848"]
[TimeControl "180+1"]
[EndTime "11:31:13 PDT"]
[Termination "MrTattaglia won by resignation"]

1. e4 {[%clk 0:03:00.9]} 1... c5 {[%clk 0:02:48.1]} 2. Nf3 {[%clk 0:03:00]} 2...
d6 {[%clk 0:02:48.2]} 3. d4 {[%clk 0:03:00.3]} 3... cxd4 {[%clk 0:02:49.1]} 4.
Nxd4 {[%clk 0:03:00.5]} 4... Nf6 {[%clk 0:02:49.6]} 5. Nc3 {[%clk 0:03:01]} 5...
a6 {[%clk 0:02:50.2]} 6. Bg5 {[%clk 0:03:01.4]} 6... e6 {[%clk 0:02:50.1]} 7. f4
{[%clk 0:03:01.9]} 7... h6 {[%clk 0:02:50.6]} 8. Bh4 {[%clk 0:03:01.8]} 8... Qb6
{[%clk 0:02:51]} 9. Qd3 {[%clk 0:03:01.6]} 9... Qxb2 {[%clk 0:02:50.4]} 10. Rb1
{[%clk 0:03:01.7]} 10... Qa3 {[%clk 0:02:50.8]} 11. e5 {[%clk 0:03:02.5]} 11...
dxe5 {[%clk 0:02:49.5]} 12. fxe5 {[%clk 0:03:03.1]} 12... Nd5 {[%clk 0:02:44.6]}
13. Nxd5 {[%clk 0:03:00.5]} 13... exd5 {[%clk 0:02:44.4]} 14. e6 {[%clk
0:02:54]} 14... Bb4+ {[%clk 0:02:26.2]} 15. Kd1 {[%clk 0:02:50.4]} 15... O-O
{[%clk 0:02:25.7]} 16. Rb3 {[%clk 0:02:17.6]} 16... Qa5 {[%clk 0:02:19.4]} 17.
Nf5 {[%clk 0:02:07.3]} 17... d4 {[%clk 0:00:53.7]} 18. Nxh6+ {[%clk 0:01:41.5]}
18... gxh6 {[%clk 0:00:51.2]} 19. Qg3+ {[%clk 0:01:39.8]} 19... Kh7 {[%clk
0:00:50.6]} 20. Bf6 {[%clk 0:01:07.1]} 20... Rg8 {[%clk 0:00:35.6]} 21. Bd3+
{[%clk 0:01:02.1]} 21... Rg6 {[%clk 0:00:35.5]} 22. Rxb4 {[%clk 0:00:57.8]}
22... Qh5+ {[%clk 0:00:17.4]} 23. Kc1 {[%clk 0:00:53.5]} 23... Bxe6 {[%clk
0:00:15.2]} 24. Bxg6+ {[%clk 0:00:48]} 24... Qxg6 {[%clk 0:00:16.1]} 25. Qxg6+
{[%clk 0:00:47.5]} 25... Kxg6 {[%clk 0:00:17]} 26. Bxd4 {[%clk 0:00:47.3]} 26...
b5 {[%clk 0:00:17.4]} 27. Bc3 {[%clk 0:00:38.4]} 27... Nc6 {[%clk 0:00:17.2]}
28. Rf4 {[%clk 0:00:38.9]} 28... Ne7 {[%clk 0:00:14.7]} 29. Rf6+ {[%clk
0:00:37.8]} 29... Kh7 {[%clk 0:00:14.6]} 30. Rhf1 {[%clk 0:00:36.3]} 30... Nd5
{[%clk 0:00:12.3]} 31. R6f3 {[%clk 0:00:34.1]} 31... Nxc3 {[%clk 0:00:11.1]} 32.
Rxc3 {[%clk 0:00:33.4]} 32... Bxa2 {[%clk 0:00:12]} 33. Kb2 {[%clk 0:00:31.1]}
33... Be6 {[%clk 0:00:12]} 34. g3 {[%clk 0:00:30.6]} 34... a5 {[%clk 0:00:10.5]}
35. Rc5 {[%clk 0:00:29.4]} 35... b4 {[%clk 0:00:03.2]} 36. Ra1 {[%clk
0:00:28.7]} 36... a4 {[%clk 0:00:03.1]} 37. Rb5 {[%clk 0:00:28.9]} 37... a3+
{[%clk 0:00:02.9]} 38. Kc1 {[%clk 0:00:28]} 38... Ra4 {[%clk 0:00:03]} 39. Kd2
{[%clk 0:00:25.6]} 39... a2 {[%clk 0:00:03.1]} 40. Kc1 {[%clk 0:00:24.3]} 40...
Kg7 {[%clk 0:00:02.6]} 41. Kb2 {[%clk 0:00:24.2]} 41... Bc4 {[%clk 0:00:03.2]}
42. Rb6 {[%clk 0:00:23.3]} 42... Be6 {[%clk 0:00:03.3]} 43. Rf1 {[%clk
0:00:20.1]} 43... Kg6 {[%clk 0:00:03.2]} 44. Ka1 {[%clk 0:00:20]} 44... Kg7
{[%clk 0:00:01.9]} 45. Rf4 {[%clk 0:00:19.9]} 45... Ra3 {[%clk 0:00:01.1]} 46.
Rfxb4 {[%clk 0:00:19.2]} 46... Re3 {[%clk 0:00:01.3]} 47. Ra6 {[%clk 0:00:17.5]}
47... Re1+ {[%clk 0:00:01.6]} 48. Kb2 {[%clk 0:00:17.5]} 48... Rb1+ {[%clk
0:00:02.5]} 49. Kc3 {[%clk 0:00:16.7]} 49... a1=Q+ {[%clk 0:00:03.4]} 50. Rxa1
{[%clk 0:00:16.5]} 50... Rxa1 {[%clk 0:00:04.3]} 51. Rf4 {[%clk 0:00:14.6]}
51... Rh1 {[%clk 0:00:04.5]} 52. Rf2 {[%clk 0:00:15.1]} 52... Kg6 {[%clk
0:00:04.5]} 53. Kd4 {[%clk 0:00:15.6]} 53... Rd1+ {[%clk 0:00:04.7]} 54. Ke5
{[%clk 0:00:15.5]} 54... Re1+ {[%clk 0:00:04.7]} 55. Kd4 {[%clk 0:00:15.6]}
55... Rc1 {[%clk 0:00:03.9]} 56. Ke5 {[%clk 0:00:13.9]} 56... h5 {[%clk
0:00:03.8]} 57. Kd6 {[%clk 0:00:12.7]} 57... Kg5 {[%clk 0:00:03.8]} 58. Ke7
{[%clk 0:00:12.6]} 58... h4 {[%clk 0:00:03.8]} 59. gxh4+ {[%clk 0:00:12.2]}
59... Kxh4 {[%clk 0:00:04.7]} 60. Kf6 {[%clk 0:00:12.1]} 60... Kh3 {[%clk
0:00:04]} 61. Ke5 {[%clk 0:00:11.5]} 61... Rh1 {[%clk 0:00:03.5]} 62. Kd4 {[%clk
0:00:08.4]} 62... Rxh2 {[%clk 0:00:03]} 63. Rxh2+ {[%clk 0:00:06.3]} 63... Kxh2
{[%clk 0:00:03.9]} 64. c4 {[%clk 0:00:06.8]} 64... Bxc4 {[%clk 0:00:04]} 65.
Kxc4 {[%clk 0:00:06.1]} 65... f5 {[%clk 0:00:04]} 66. Kd4 {[%clk 0:00:05.8]}
66... f4 {[%clk 0:00:03.8]} 67. Ke4 {[%clk 0:00:05.5]} 67... Kg3 {[%clk
0:00:03.7]} 0-1

[Event "*** Titled Tuesday Blitz"]
[Site "Chess.com"]
[Date "2020.04.14"]
[Round "8"]
[White "Sanan_Sjugirov"]
[Black "Sashadav97"]
[Result "1-0"]
[WhiteElo "2819"]
[BlackElo "2598"]
[TimeControl "180+1"]
[EndTime "11:31:13 PDT"]
[Termination "Sanan_Sjugirov won by resignation"]

1. d4 {[%clk 0:03:00.9]} 1... d5 {[%clk 0:02:57.6]} 2. Nf3 {[%clk 0:03:01.1]}
2... e6 {[%clk 0:02:56.8]} 3. Bf4 {[%clk 0:02:58.6]} 3... Bd6 {[%clk 0:02:56]}
4. Bg3 {[%clk 0:02:55.1]} 4... Nf6 {[%clk 0:02:55.6]} 5. Nbd2 {[%clk 0:02:52.5]}
5... b6 {[%clk 0:02:55.3]} 6. e3 {[%clk 0:02:52]} 6... Bb7 {[%clk 0:02:55.5]} 7.
Bd3 {[%clk 0:02:49.3]} 7... c5 {[%clk 0:02:54.8]} 8. c3 {[%clk 0:02:48.3]} 8...
Qc7 {[%clk 0:02:54.8]} 9. Bxd6 {[%clk 0:02:47.9]} 9... Qxd6 {[%clk 0:02:54.6]}
10. Ne5 {[%clk 0:02:48.6]} 10... O-O {[%clk 0:02:51.3]} 11. f4 {[%clk
0:02:46.6]} 11... Ba6 {[%clk 0:02:51]} 12. Bc2 {[%clk 0:02:43.4]} 12... Nc6
{[%clk 0:02:45.5]} 13. g4 {[%clk 0:02:37.4]} 13... cxd4 {[%clk 0:02:32.8]} 14.
exd4 {[%clk 0:02:37.2]} 14... Nd7 {[%clk 0:02:24]} 15. g5 {[%clk 0:02:33]} 15...
Ndxe5 {[%clk 0:01:49.3]} 16. fxe5 {[%clk 0:02:33.9]} 16... Nxe5 {[%clk
0:01:49.9]} 17. dxe5 {[%clk 0:02:33.5]} 17... Qxe5+ {[%clk 0:01:50.8]} 18. Kf2
{[%clk 0:02:33.8]} 18... Qxg5 {[%clk 0:01:51.4]} 19. Nf3 {[%clk 0:02:31.1]}
19... Qf6 {[%clk 0:01:47.9]} 20. Qd4 {[%clk 0:02:28.2]} 20... Qxd4+ {[%clk
0:01:41.5]} 21. cxd4 {[%clk 0:02:28.8]} 21... Rac8 {[%clk 0:01:40]} 22. Rac1
{[%clk 0:02:27.5]} 22... Bb5 {[%clk 0:01:38]} 23. Bb1 {[%clk 0:02:21]} 23... f6
{[%clk 0:01:36.7]} 24. h4 {[%clk 0:02:18.8]} 24... g6 {[%clk 0:01:35.6]} 25.
Rce1 {[%clk 0:02:12.4]} 25... Bd7 {[%clk 0:01:26.9]} 26. Kg3 {[%clk 0:02:03.6]}
26... Kg7 {[%clk 0:01:26.6]} 27. h5 {[%clk 0:01:58.7]} 27... Rh8 {[%clk
0:01:23.9]} 28. h6+ {[%clk 0:01:57.1]} 28... Kf7 {[%clk 0:01:23.4]} 29. Bd3
{[%clk 0:01:55.2]} 29... Rc7 {[%clk 0:01:19.5]} 30. Ref1 {[%clk 0:01:51.1]}
30... Ke7 {[%clk 0:01:19.4]} 31. Nh4 {[%clk 0:01:48.7]} 31... Be8 {[%clk
0:01:19.4]} 32. Re1 {[%clk 0:01:47.8]} 32... Bf7 {[%clk 0:01:19]} 33. Ng2 {[%clk
0:01:43.7]} 33... Kd6 {[%clk 0:01:16.2]} 34. Rhf1 {[%clk 0:01:43]} 34... f5
{[%clk 0:01:04.5]} 35. Nh4 {[%clk 0:01:30.7]} 35... g5 {[%clk 0:00:55.4]} 36.
Nf3 {[%clk 0:01:30.9]} 36... Rg8 {[%clk 0:00:55.3]} 37. Ne5 {[%clk 0:01:30.3]}
37... Be8 {[%clk 0:00:54.8]} 38. Rh1 {[%clk 0:01:22.9]} 38... Rf8 {[%clk
0:00:50]} 39. Kf3 {[%clk 0:01:21.8]} 39... Rg8 {[%clk 0:00:50.2]} 40. Reg1
{[%clk 0:01:21.5]} 40... Rc8 {[%clk 0:00:49.6]} 41. Rh2 {[%clk 0:01:20.4]} 41...
Rc7 {[%clk 0:00:49.6]} 42. Ke3 {[%clk 0:01:20.1]} 42... g4 {[%clk 0:00:47.5]}
43. Kf4 {[%clk 0:01:19.6]} 43... Rc8 {[%clk 0:00:47]} 44. Re2 {[%clk 0:01:15.8]}
44... Rc7 {[%clk 0:00:46.7]} 45. Rge1 {[%clk 0:01:15.5]} 45... Rf8 {[%clk
0:00:45.4]} 46. Re3 {[%clk 0:01:05]} 46... Rf6 {[%clk 0:00:44.3]} 47. Rh1 {[%clk
0:01:02.6]} 47... Ba4 {[%clk 0:00:39.1]} 48. Re2 {[%clk 0:00:54.8]} 48... Rf8
{[%clk 0:00:36.8]} 49. Bb1 {[%clk 0:00:45.6]} 49... Rfc8 {[%clk 0:00:24.2]} 50.
Ree1 {[%clk 0:00:45.4]} 50... Bc2 {[%clk 0:00:21.9]} 51. Bxc2 {[%clk 0:00:41.3]}
51... Rxc2 {[%clk 0:00:22.8]} 52. Nf7+ {[%clk 0:00:41.6]} 52... Ke7 {[%clk
0:00:22.7]} 53. Ng5 {[%clk 0:00:42]} 53... Rf2+ {[%clk 0:00:23]} 54. Kg3 {[%clk
0:00:41.4]} 54... Rxb2 {[%clk 0:00:21]} 55. Rxe6+ {[%clk 0:00:40.9]} 55... Kd7
{[%clk 0:00:21.3]} 56. Rhe1 {[%clk 0:00:39.6]} 56... Rc3+ {[%clk 0:00:21.4]} 57.
Kf4 {[%clk 0:00:36.5]} 57... Rf2+ {[%clk 0:00:20.3]} 58. Ke5 {[%clk 0:00:36.8]}
58... g3 {[%clk 0:00:19.9]} 59. Nxh7 {[%clk 0:00:32]} 59... g2 {[%clk
0:00:18.2]} 60. Nf6+ {[%clk 0:00:32.2]} 60... Kc7 {[%clk 0:00:18.2]} 61. Nxd5+
{[%clk 0:00:29.5]} 61... Kb7 {[%clk 0:00:18.5]} 62. Nxc3 {[%clk 0:00:29.2]}
62... Rf1 {[%clk 0:00:19]} 63. Ne2 {[%clk 0:00:11.1]} 63... Rxe1 {[%clk
0:00:18.3]} 64. Rg6 {[%clk 0:00:11.2]} 64... Rxe2+ {[%clk 0:00:17.3]} 65. Kxf5
{[%clk 0:00:10.7]} 65... Rf2+ {[%clk 0:00:14.1]} 66. Ke6 {[%clk 0:00:10.6]}
66... Re2+ {[%clk 0:00:13.8]} 67. Kf6 {[%clk 0:00:10.5]} 67... Rf2+ {[%clk
0:00:13.4]} 68. Kg7 {[%clk 0:00:10.4]} 68... Rxa2 {[%clk 0:00:10.1]} 69. h7
{[%clk 0:00:10.1]} 69... g1=Q {[%clk 0:00:11]} 70. Rxg1 {[%clk 0:00:09.9]} 70...
Rh2 {[%clk 0:00:11.5]} 1-0

[Event "*** Titled Tuesday Blitz"]
[Site "Chess.com"]
[Date "2020.04.14"]
[Round "8"]
[White "dragos420"]
[Black "LionTheLeon_06"]
[Result "0-1"]
[WhiteElo "2505"]
[BlackElo "2669"]
[TimeControl "180+1"]
[EndTime "11:31:14 PDT"]
[Termination "LionTheLeon_06 won by resignation"]

1. e4 {[%clk 0:03:00.9]} 1... c5 {[%clk 0:02:59.8]} 2. Nf3 {[%clk 0:02:57.4]}
2... d6 {[%clk 0:02:59]} 3. d4 {[%clk 0:02:57.2]} 3... cxd4 {[%clk 0:02:59.7]}
4. Nxd4 {[%clk 0:02:58.1]} 4... Nf6 {[%clk 0:03:00]} 5. Nc3 {[%clk 0:02:58.2]}
5... a6 {[%clk 0:03:00.1]} 6. Be3 {[%clk 0:02:57.3]} 6... e5 {[%clk 0:02:59.5]}
7. Nb3 {[%clk 0:02:57.7]} 7... Be6 {[%clk 0:03:00]} 8. f4 {[%clk 0:02:58.3]}
8... exf4 {[%clk 0:02:58.8]} 9. Bxf4 {[%clk 0:02:59.2]} 9... Nc6 {[%clk
0:02:59.2]} 10. Qd2 {[%clk 0:02:55.7]} 10... d5 {[%clk 0:02:42.1]} 11. O-O-O
{[%clk 0:02:40]} 11... dxe4 {[%clk 0:02:38.4]} 12. Qe3 {[%clk 0:02:32.6]} 12...
Qc8 {[%clk 0:02:23.9]} 13. Nxe4 {[%clk 0:02:18]} 13... Nxe4 {[%clk 0:02:22.6]}
14. Qxe4 {[%clk 0:02:18.9]} 14... Be7 {[%clk 0:02:22]} 15. Bd3 {[%clk
0:01:53.8]} 15... Nb4 {[%clk 0:02:17.6]} 16. Kb1 {[%clk 0:01:45.6]} 16... Nxd3
{[%clk 0:02:17.4]} 17. Qxd3 {[%clk 0:01:36.8]} 17... O-O {[%clk 0:02:15.9]} 18.
Nd4 {[%clk 0:01:31.2]} 18... Rd8 {[%clk 0:02:09.1]} 19. Qe4 {[%clk 0:01:22.5]}
19... Qc4 {[%clk 0:01:43.8]} 20. b3 {[%clk 0:01:06.9]} 20... Qb4 {[%clk
0:01:27.8]} 21. Rhe1 {[%clk 0:00:55.5]} 21... Bf6 {[%clk 0:01:17.4]} 22. Be5
{[%clk 0:00:46.1]} 22... Bxe5 {[%clk 0:01:09.9]} 23. Qxe5 {[%clk 0:00:47]} 23...
Rd5 {[%clk 0:01:01.7]} 24. Qe3 {[%clk 0:00:14]} 24... Rad8 {[%clk 0:01:01.5]}
25. c3 {[%clk 0:00:14.3]} 25... Qa3 {[%clk 0:00:55.5]} 26. Rc1 {[%clk
0:00:10.8]} 26... Bc8 {[%clk 0:00:44.3]} 27. Qe8+ {[%clk 0:00:07.8]} 27... Rxe8
{[%clk 0:00:42.7]} 28. Rxe8+ {[%clk 0:00:08.7]} 28... Qf8 {[%clk 0:00:42.8]} 29.
Rxf8+ {[%clk 0:00:09.3]} 29... Kxf8 {[%clk 0:00:43.6]} 30. Re1 {[%clk
0:00:10.1]} 30... g5 {[%clk 0:00:39]} 31. g3 {[%clk 0:00:10.2]} 31... f6 {[%clk
0:00:32.9]} 32. Kc2 {[%clk 0:00:10.4]} 32... Kf7 {[%clk 0:00:33.4]} 33. Kd3
{[%clk 0:00:09.9]} 33... h5 {[%clk 0:00:26.2]} 34. a4 {[%clk 0:00:07.8]} 34...
Rd8 {[%clk 0:00:19.5]} 35. a5 {[%clk 0:00:07.3]} 35... Rh8 {[%clk 0:00:17.7]}
36. b4 {[%clk 0:00:07.4]} 36... h4 {[%clk 0:00:18]} 37. Re3 {[%clk 0:00:07.2]}
37... h3 {[%clk 0:00:17.9]} 38. Kc4 {[%clk 0:00:05]} 38... Rd8 {[%clk
0:00:17.4]} 39. Kc5 {[%clk 0:00:05.1]} 39... f5 {[%clk 0:00:17.2]} 40. Kb6
{[%clk 0:00:05.1]} 40... Kf6 {[%clk 0:00:15.3]} 41. Kc7 {[%clk 0:00:04.9]} 41...
Rg8 {[%clk 0:00:14.2]} 42. c4 {[%clk 0:00:05.4]} 42... f4 {[%clk 0:00:10.5]} 43.
gxf4 {[%clk 0:00:05.2]} 43... g4 {[%clk 0:00:10.9]} 44. Rg3 {[%clk 0:00:04.7]}
44... Bf5 {[%clk 0:00:09.8]} 45. Kxb7 {[%clk 0:00:03.7]} 45... Bd3 {[%clk
0:00:10.1]} 46. c5 {[%clk 0:00:03.6]} 46... Rg7+ {[%clk 0:00:09.9]} 47. Kb6
{[%clk 0:00:03.3]} 47... Rd7 {[%clk 0:00:08.7]} 48. Nc6 {[%clk 0:00:01.3]} 48...
Bf5 {[%clk 0:00:07.9]} 49. Ne5 {[%clk 0:00:02.2]} 49... Rd4 {[%clk 0:00:08.1]}
50. c6 {[%clk 0:00:03.1]} 50... Rxb4+ {[%clk 0:00:08.5]} 51. Kxa6 {[%clk
0:00:03.2]} 51... Rxf4 {[%clk 0:00:08.6]} 52. c7 {[%clk 0:00:03.5]} 52... Kxe5
{[%clk 0:00:08.8]} 53. Kb6 {[%clk 0:00:03.3]} 53... Rf2 {[%clk 0:00:08.6]} 54.
a6 {[%clk 0:00:03.5]} 54... Rb2+ {[%clk 0:00:08.8]} 55. Ka7 {[%clk 0:00:03.7]}
55... Rxh2 {[%clk 0:00:08.7]} 56. Re3+ {[%clk 0:00:03.4]} 56... Kf4 {[%clk
0:00:08.5]} 57. Rc3 {[%clk 0:00:03.6]} 57... Rb2 {[%clk 0:00:08]} 58. Rc5 {[%clk
0:00:02.9]} 58... Be6 {[%clk 0:00:07.7]} 59. c8=Q {[%clk 0:00:02]} 59... Bxc8
{[%clk 0:00:08]} 60. Rxc8 {[%clk 0:00:02.4]} 60... h2 {[%clk 0:00:08.9]} 61. Rc7
{[%clk 0:00:02.8]} 61... g3 {[%clk 0:00:09.2]} 62. Rb7 {[%clk 0:00:03.7]} 62...
Ra2 {[%clk 0:00:09.6]} 63. Kb8 {[%clk 0:00:03.6]} 63... h1=Q {[%clk 0:00:09.7]}
64. a7 {[%clk 0:00:04.5]} 64... Qh8+ {[%clk 0:00:09.9]} 65. Kc7 {[%clk
0:00:05.4]} 65... Qg7+ {[%clk 0:00:10.2]} 66. Kb8 {[%clk 0:00:05.8]} 66... Qxb7+
{[%clk 0:00:11.1]} 67. Kxb7 {[%clk 0:00:06.1]} 67... Rxa7+ {[%clk 0:00:11.8]}
68. Kxa7 {[%clk 0:00:06.2]} 68... g2 {[%clk 0:00:12.7]} 69. Kb6 {[%clk
0:00:07.1]} 69... g1=Q+ {[%clk 0:00:13.6]} 70. Kc7 {[%clk 0:00:08]} 70... Qg3
{[%clk 0:00:14.3]} 71. Kd7 {[%clk 0:00:08.9]} 71... Qe3 {[%clk 0:00:15.2]} 0-1

[Event "*** Titled Tuesday Blitz"]
[Site "Chess.com"]
[Date "2020.04.14"]
[Round "8"]
[White "Spalir"]
[Black "LimeInTheCoconut"]
[Result "0-1"]
[WhiteElo "2577"]
[BlackElo "2362"]
[TimeControl "180+1"]
[EndTime "11:31:15 PDT"]
[Termination "LimeInTheCoconut won by resignation"]

1. d4 {[%clk 0:03:00.9]} 1... Nf6 {[%clk 0:02:58.3]} 2. c4 {[%clk 0:03:00.9]}
2... e6 {[%clk 0:02:58.1]} 3. Nf3 {[%clk 0:03:00.8]} 3... b6 {[%clk 0:02:57.8]}
4. a3 {[%clk 0:02:59.4]} 4... Bb7 {[%clk 0:02:57.2]} 5. Nc3 {[%clk 0:02:58.4]}
5... d5 {[%clk 0:02:57.8]} 6. Qc2 {[%clk 0:02:58.3]} 6... Bd6 {[%clk 0:02:45]}
7. Bg5 {[%clk 0:02:55.6]} 7... O-O {[%clk 0:02:34.4]} 8. cxd5 {[%clk 0:02:55.2]}
8... exd5 {[%clk 0:02:34]} 9. g3 {[%clk 0:02:54.5]} 9... a6 {[%clk 0:02:31.8]}
10. Bg2 {[%clk 0:02:53.1]} 10... Nbd7 {[%clk 0:02:31.2]} 11. O-O {[%clk
0:02:52.7]} 11... h6 {[%clk 0:02:31.1]} 12. Bf4 {[%clk 0:02:51.6]} 12... Bxf4
{[%clk 0:02:14.2]} 13. gxf4 {[%clk 0:02:52.5]} 13... c5 {[%clk 0:02:08.2]} 14.
dxc5 {[%clk 0:02:51.3]} 14... bxc5 {[%clk 0:02:04.6]} 15. Rfd1 {[%clk
0:02:47.8]} 15... Re8 {[%clk 0:01:57.9]} 16. Rac1 {[%clk 0:02:42.2]} 16... Qc7
{[%clk 0:01:32.6]} 17. e3 {[%clk 0:02:40.3]} 17... Rac8 {[%clk 0:01:31.2]} 18.
Ne2 {[%clk 0:02:24.4]} 18... Qb6 {[%clk 0:01:25]} 19. Ng3 {[%clk 0:02:21.8]}
19... a5 {[%clk 0:01:19.1]} 20. Nf5 {[%clk 0:02:17.2]} 20... d4 {[%clk
0:01:09.9]} 21. exd4 {[%clk 0:01:44.9]} 21... Be4 {[%clk 0:01:09]} 22. dxc5
{[%clk 0:01:42.1]} 22... Rxc5 {[%clk 0:00:58.9]} 23. Qd2 {[%clk 0:01:26.9]}
23... Bxf5 {[%clk 0:00:49.1]} 24. Nd4 {[%clk 0:01:25.5]} 24... Be4 {[%clk
0:00:38.8]} 25. Bh3 {[%clk 0:01:24.2]} 25... Rxc1 {[%clk 0:00:32.9]} 26. Rxc1
{[%clk 0:01:25.1]} 26... Nf8 {[%clk 0:00:26.7]} 27. b4 {[%clk 0:01:18.9]} 27...
Rd8 {[%clk 0:00:24.1]} 28. Rd1 {[%clk 0:01:18.1]} 28... axb4 {[%clk 0:00:22.5]}
29. axb4 {[%clk 0:01:18]} 29... Bf3 {[%clk 0:00:20.4]} 30. Nxf3 {[%clk
0:01:12.5]} 30... Rxd2 {[%clk 0:00:20.7]} 31. Rxd2 {[%clk 0:01:13.1]} 31... Qxb4
{[%clk 0:00:20.7]} 32. Rd4 {[%clk 0:01:13.6]} 32... Qb1+ {[%clk 0:00:18.7]} 33.
Kg2 {[%clk 0:01:14]} 33... g6 {[%clk 0:00:16.8]} 34. Bc8 {[%clk 0:01:06.8]}
34... Kg7 {[%clk 0:00:16.1]} 35. Bh3 {[%clk 0:01:06.4]} 35... h5 {[%clk
0:00:15.7]} 36. Ng5 {[%clk 0:01:04.7]} 36... Qb2 {[%clk 0:00:12.8]} 37. Rd3
{[%clk 0:01:02.3]} 37... Ng4 {[%clk 0:00:12.5]} 38. Bxg4 {[%clk 0:00:58.9]}
38... hxg4 {[%clk 0:00:13.4]} 39. Rd7 {[%clk 0:00:57.8]} 39... Qb3 {[%clk
0:00:09.3]} 40. Ra7 {[%clk 0:00:52.3]} 40... Nh7 {[%clk 0:00:08.8]} 41. Nxh7
{[%clk 0:00:35.3]} 41... Kxh7 {[%clk 0:00:08.4]} 42. Kg1 {[%clk 0:00:33.5]}
42... Qb1+ {[%clk 0:00:07.7]} 43. Kg2 {[%clk 0:00:33.5]} 43... Qe4+ {[%clk
0:00:08.4]} 44. Kg1 {[%clk 0:00:34.1]} 44... Kg7 {[%clk 0:00:08.8]} 45. Ra3
{[%clk 0:00:31.4]} 45... Qxf4 {[%clk 0:00:08.9]} 46. Rg3 {[%clk 0:00:31.6]}
46... f5 {[%clk 0:00:09.4]} 47. Kg2 {[%clk 0:00:31.8]} 47... Qe4+ {[%clk
0:00:09.5]} 48. Kg1 {[%clk 0:00:32.4]} 48... Qe1+ {[%clk 0:00:09.5]} 49. Kg2
{[%clk 0:00:32.4]} 49... Kf6 {[%clk 0:00:10.2]} 50. Ra3 {[%clk 0:00:31.9]} 50...
Kg5 {[%clk 0:00:10.1]} 51. Rb3 {[%clk 0:00:30.1]} 51... Qe4+ {[%clk 0:00:09.1]}
52. Kg1 {[%clk 0:00:30.6]} 52... Qe1+ {[%clk 0:00:09.2]} 53. Kg2 {[%clk
0:00:31]} 53... Qe6 {[%clk 0:00:09.7]} 54. Re3 {[%clk 0:00:29.6]} 54... Qd5+
{[%clk 0:00:09.6]} 55. Kg1 {[%clk 0:00:29.7]} 55... f4 {[%clk 0:00:10]} 56. Ra3
{[%clk 0:00:29]} 56... Qd1+ {[%clk 0:00:10.2]} 57. Kg2 {[%clk 0:00:29.2]} 57...
f3+ {[%clk 0:00:11.1]} 58. Rxf3 {[%clk 0:00:28.8]} 58... Qg1+ {[%clk 0:00:12]}
59. Kxg1 {[%clk 0:00:29.1]} 59... gxf3 {[%clk 0:00:12.2]} 60. h3 {[%clk
0:00:27.1]} 60... Kh4 {[%clk 0:00:10.8]} 61. Kh2 {[%clk 0:00:27.2]} 61... g5
{[%clk 0:00:10.9]} 62. Kg1 {[%clk 0:00:27.4]} 62... Kxh3 {[%clk 0:00:11.1]} 63.
Kh1 {[%clk 0:00:27.7]} 63... g4 {[%clk 0:00:05.4]} 64. Kg1 {[%clk 0:00:27.8]}
64... g3 {[%clk 0:00:05.6]} 65. Kh1 {[%clk 0:00:26.8]} 65... Kg4 {[%clk
0:00:03.4]} 66. Kg1 {[%clk 0:00:27.2]} 66... Kf4 {[%clk 0:00:02.6]} 67. Kf1
{[%clk 0:00:23.2]} 67... g2+ {[%clk 0:00:02.5]} 68. Kg1 {[%clk 0:00:23.7]} 68...
Ke4 {[%clk 0:00:02.9]} 69. Kh2 {[%clk 0:00:23.7]} 69... Kd3 {[%clk 0:00:03.8]}
70. Kg3 {[%clk 0:00:23.2]} 70... Ke2 {[%clk 0:00:04.5]} 71. Kf4 {[%clk
0:00:23.5]} 71... g1=Q {[%clk 0:00:04.7]} 72. Ke5 {[%clk 0:00:24.4]} 72... Qxf2
{[%clk 0:00:05.4]} 73. Kd5 {[%clk 0:00:25.3]} 73... Qe1 {[%clk 0:00:06.3]} 74.
Ke4 {[%clk 0:00:25.7]} 74... f2 {[%clk 0:00:07.2]} 75. Kf4 {[%clk 0:00:26.6]}
75... f1=Q+ {[%clk 0:00:08.1]} 0-1